bitfinex/quotes_ETHUSD_20250801
["timestamp","ask_amount","ask_price","bid_price","bid_amount"]
[1754092574304,0.1432,3493.1,3492.6,0.1432]
[1754092574537,0.9389,3493.0,3492.6,3.0063324]
[1754092574742,0.1432,3493.1,3492.6,0.1432]
[1754092574900,7.45552682,3493.7,3493.0,2.86282138]
[1754092575101,5.0902,3493.7,3493.0,0.1432]
[1754092575309,4.45,3493.7,3493.6,3.00557691]
[1754092575538,4.45,3493.9,3493.6,0.1432]
[1754092575710,4.45,3493.9,3493.8,0.1432]
[1754092576429,5.3889,3493.9,3493.8,0.1432]
[1754092577468,8.25103114,3493.9,3493.8,0.1432]
[1754092577870,5.3889,3493.9,3493.8,0.1432]
[1754092578366,2.86221903,3493.8,3493.1,4.449]
[1754092578531,0.9389,3493.7,3493.4,0.1432]
[1754092579059,0.9389,3493.6,3493.4,0.1432]
[1754092580659,0.497,3493.6,3493.4,3.00572222]
[1754092580872,4.45,3493.9,3493.7,2.86224168]
[1754092581037,4.45,3493.9,3493.6,2.8623536]
[1754092581237,4.45,3493.9,3493.4,3.34212946]
[1754092581238,4.45,3493.9,3493.7,0.1432]
[1754092581573,4.45,3493.9,3493.8,2.86221306]
[1754092581757,4.446,3494.1,3494.0,2.86204922]
[1754092581939,4.446,3494.4,3494.1,0.1432]
[1754092582561,0.4829,3494.3,3494.1,0.1432]
[1754092583079,3.34478541,3494.2,3494.1,0.1432]
[1754092583393,0.9169,3494.2,3493.8,0.1432]
[1754092583677,5.3619,3494.1,3493.8,3.00536412]
[1754092583881,4.879,3494.1,3493.8,0.1432]
[1754092584082,4.445,3494.1,3493.8,0.1432]
[1754092584559,4.9279,3494.1,3493.8,0.1432]
[1754092584756,4.9279,3494.1,3493.8,3.00534617]
[1754092585466,4.9279,3494.1,3493.8,0.1432]
[1754092585675,4.9279,3494.1,3493.8,3.00537716]
[1754092586452,5.3619,3494.1,3493.8,3.00540141]
[1754092586880,4.445,3494.1,3493.9,2.86209133]
[1754092587388,4.445,3494.1,3494.0,2.86204922]
[1754092587596,1.0601,3494.4,3494.0,2.86204922]
[1754092587803,9.442,3495.0,3494.1,0.4981]
[1754092587804,5.0,3495.0,3494.1,0.4981]
[1754092588097,8.21822852,3494.9,3494.3,2.86175185]
[1754092588297,8.21822852,3494.9,3494.4,2.86170697]
[1754092588496,0.4829,3494.8,3494.5,2.861581]
[1754092588792,9.442,3495.0,3494.5,2.86163971]
[1754092588955,9.442,3495.0,3494.5,3.22616482]
[1754092589156,0.9169,3494.8,3494.5,3.22616482]
[1754092590768,0.4829,3494.8,3494.5,3.22616482]
[1754092590967,9.442,3495.0,3494.6,2.86154931]
[1754092591356,9.442,3495.0,3494.7,2.86147051]
[1754092591692,9.442,3495.0,3494.7,3.49885759]
[1754092591896,5.0,3495.0,3494.9,2.86131219]
[1754092593493,5.0,3495.0,3494.9,3.79571219]
[1754092593889,5.0,3495.0,3494.9,3.35941219]
[1754092594093,5.0,3495.0,3494.9,6.79571219]
[1754092594253,5.0,3495.0,3494.9,8.26886949]
[1754092594658,5.0,3495.0,3494.9,7.83256949]
[1754092594881,5.0,3495.0,3494.9,12.27056949]
[1754092596604,5.4829,3495.0,3494.9,1.4731573]
[1754092596811,5.9169,3495.0,3494.9,2.86131219]
[1754092597098,5.0,3495.0,3494.9,2.86131219]
[1754092597256,5.9169,3495.0,3494.9,2.86131219]
[1754092597459,5.9169,3495.0,3494.7,3.4988594]
[1754092597460,5.9169,3495.0,3494.7,0.63738708]
[1754092597661,5.9169,3495.0,3491.7,2.64960173]
[1754092597662,5.3539,3494.9,3491.7,2.64960173]
[1754092597887,2.86173875,3494.4,3493.3,0.859666]
[1754092598085,0.9169,3494.8,3494.0,2.86197669]
[1754092598284,4.442,3494.7,3494.5,2.86158587]
[1754092598490,5.0,3495.0,3494.6,0.1432]
[1754092598664,9.445,3495.0,3494.8,3.00454476]
[1754092598861,5.0,3495.0,3494.9,3.44792148]
[1754092599168,5.0,3495.0,3494.9,3.59112148]
[1754092599984,5.0,3495.0,3494.9,4.08922148]
[1754092600611,5.0,3495.0,3494.9,4.52552148]
[1754092600806,5.0,3495.0,3494.9,7.52552148]
[1754092603017,3.2421875,3495.0,3494.9,7.52552148]
[1754092603335,4.445,3496.0,3494.9,7.52552148]
[1754092603336,0.001,3496.0,3495.9,2.86049372]
[1754092603668,0.001,3496.0,3495.9,3.00369372]
[1754092604685,0.001,3496.0,3495.9,3.50179372]
[1754092605007,0.001,3496.0,3495.9,4.62606178]
[1754092605212,0.001,3496.0,3495.9,4.12796178]
[1754092605412,0.001,3496.0,3495.3,3.0]
[1754092605413,0.9179,3496.0,3495.4,4.444]
[1754092605612,0.9169,3495.9,3495.8,0.1432]
[1754092605766,0.9169,3495.9,3495.7,0.1432]
[1754092605967,0.9169,3495.8,3495.7,0.1432]
[1754092606529,3.77747554,3495.8,3495.7,0.1432]
[1754092606979,2.86070898,3495.7,3495.3,4.444]
[1754092607180,0.9169,3495.8,3495.0,2.86120292]
[1754092607181,2.86075364,3495.6,3495.4,0.1432]
[1754092607380,3.77765364,3495.6,3495.4,0.1432]
[1754092607709,0.9169,3495.5,3495.4,0.1432]
[1754092607908,2.86060505,3495.8,3495.4,0.1432]
[1754092608106,0.9169,3495.5,3495.4,0.1432]
[1754092608469,3.46273958,3495.9,3495.4,4.5872]
[1754092608671,0.4829,3495.9,3495.7,2.86060356]
[1754092608896,0.001,3496.0,3495.8,7.44677554]
[1754092609104,0.001,3496.0,3495.8,7.44577554]
[1754092609641,0.9179,3496.0,3495.9,2.86049372]
[1754092610110,0.9179,3496.0,3495.8,4.5852]
[1754092610268,0.434,3495.9,3495.8,4.5852]
[1754092610473,0.9169,3495.9,3495.8,7.44576479]
[1754092612975,0.9268,3495.9,3495.8,7.44576479]
[1754092613211,0.9268,3495.9,3495.8,4.5852]
[1754092613431,0.9268,3495.9,3495.8,0.1432]
[1754092613632,0.9268,3495.9,3495.8,4.438]
[1754092614132,0.9268,3495.9,3495.8,4.439]
[1754092614333,0.9268,3495.9,3495.5,0.1432]
[1754092614539,0.9408,3495.8,3495.6,4.438]
[1754092614720,0.1442,3496.0,3495.7,2.86065737]
[1754092615032,0.1442,3496.0,3495.6,7.29872362]
[1754092615335,0.9408,3495.9,3495.6,7.29872362]
[1754092615533,0.9408,3495.8,3495.7,2.86065737]
[1754092616030,0.4928,3495.8,3495.6,7.29870413]
[1754092616234,0.001,3495.9,3495.6,2.86070413]
[1754092616440,0.001,3495.9,3495.7,7.30063673]
[1754092616600,0.001,3495.9,3495.8,2.86057554]
[1754092617028,0.001,3495.9,3495.8,7.30057554]
[1754092617237,0.9418,3495.9,3495.7,2.86063061]
[1754092617399,0.9408,3495.8,3495.6,0.1432]
[1754092617600,0.9408,3495.8,3495.7,7.29965505]
[1754092618030,0.9408,3495.8,3495.7,7.29865737]
[1754092619012,0.9408,3495.8,3495.7,4.438]
[1754092619337,0.9408,3495.8,3495.7,7.29865737]
[1754092620033,0.4928,3495.8,3495.7,7.29865737]
[1754092620606,0.001,3495.9,3495.8,2.86057554]
[1754092622641,0.001,3495.9,3495.8,7.29757554]
[1754092622642,0.9418,3495.9,3495.8,7.29757554]
[1754092622939,0.001,3495.9,3495.8,7.29757554]
[1754092623304,0.001,3495.9,3495.8,2.86057554]
[1754092623652,0.9418,3495.9,3495.8,2.86057554]
[1754092623807,0.4938,3495.9,3495.8,7.29457554]
[1754092624007,0.001,3495.9,3495.8,8.46761941]
[1754092624255,0.001,3495.9,3495.8,3.00377554]
[1754092624413,0.9418,3495.9,3495.8,4.439]
[1754092624750,0.001,3495.9,3495.8,7.29957554]
[1754092625441,0.9418,3495.9,3495.8,4.441]
[1754092625643,0.9418,3495.9,3495.8,7.30157554]
[1754092625644,0.001,3495.9,3495.8,7.30157554]
[1754092625823,0.001,3495.9,3495.8,4.441]
[1754092626320,0.4938,3495.9,3495.8,4.441]
[1754092626516,0.9418,3495.9,3495.8,4.441]
[1754092626720,0.4938,3495.9,3495.8,7.30157554]
[1754092626939,0.001,3495.9,3495.8,7.30157554]
[1754092627507,0.449,3495.9,3495.8,7.30157554]
[1754092627708,0.001,3495.9,3495.8,7.30157554]
[1754092628251,0.001,3495.9,3495.8,8.31780324]
[1754092628757,0.001,3495.9,3495.8,8.32180324]
[1754092629111,0.001,3495.9,3495.2,0.4663]
[1754092629112,0.001,3495.9,3495.1,2.86310803]
[1754092629312,0.001,3495.9,3495.8,2.86057554]
[1754092629544,0.001,3495.9,3495.8,7.30557554]
[1754092630147,0.9418,3495.9,3495.8,2.86057554]
[1754092630446,0.9418,3495.9,3495.8,7.30457554]
[1754092631421,0.9418,3495.9,3495.8,2.86057554]
[1754092631741,0.9418,3495.9,3495.8,7.30357554]
[1754092632462,0.9418,3495.9,3495.1,0.002]
[1754092632755,0.9408,3495.8,3495.2,4.443]
[1754092632942,0.9408,3495.7,3495.2,7.30404856]
[1754092633274,0.9408,3495.6,3495.3,4.443]
[1754092633550,0.9408,3495.5,3495.1,2.86313952]
[1754092633729,0.9408,3495.5,3495.1,7.30613952]
[1754092633924,0.9408,3495.4,3495.1,4.445]
[1754092634129,0.5723236,3495.7,3495.2,2.86104237]
[1754092634338,0.9408,3495.3,3495.2,2.86104237]
[1754092634550,0.9408,3495.3,3495.1,7.30611506]
[1754092634757,0.448,3495.3,3495.2,2.8610666]
[1754092635053,0.1432,3495.5,3495.2,4.442]
[1754092635213,0.448,3495.4,3495.2,4.442]
[1754092635418,0.9408,3495.3,3495.2,4.442]
[1754092635718,0.9408,3495.3,3495.2,7.3030666]
[1754092635915,0.9408,3495.3,3495.2,4.442]
[1754092636157,0.9408,3495.3,3495.2,4.44]
[1754092636831,0.9408,3495.3,3495.1,0.002]
[1754092637029,0.1432,3495.5,3495.2,4.44]
[1754092637347,3.00409762,3495.5,3495.2,4.44]
[1754092637557,0.9408,3495.4,3495.2,4.44]
[1754092637920,0.9408,3495.3,3495.2,4.44]
[1754092638662,0.9408,3495.3,3495.1,0.002]
[1754092638829,1.4784909,3495.2,3495.1,0.002]
[1754092639253,4.3395575,3495.2,3495.1,0.002]
[1754092639455,4.36840762,3495.2,3495.1,0.002]
[1754092639759,4.3395575,3495.2,3495.1,0.002]
[1754092640737,1.4784909,3495.2,3495.1,0.002]
[1754092641453,4.3395575,3495.2,3495.1,0.002]
[1754092641633,1.4784909,3495.2,3495.1,0.002]
[1754092641829,0.1432,3495.2,3495.1,0.002]
[1754092642342,1.0219,3495.2,3495.1,0.002]
[1754092643960,3.8829666,3495.2,3495.1,0.002]
[1754092644257,4.46181672,3495.2,3495.1,0.002]
[1754092645636,7.46181672,3495.2,3495.1,0.002]
[1754092645953,8.90904614,3495.2,3495.1,0.002]
[1754092646862,10.62904614,3495.2,3495.1,0.002]
[1754092649460,17.64904614,3495.2,3495.1,0.002]
[1754092650242,5.13139407,3494.8,3494.7,1e-08]
[1754092650444,29.28762157,3494.8,3494.7,1e-08]
[1754092650647,0.55,3494.3,3493.3,2.86256919]
[1754092650831,0.1432,3493.4,3493.3,2.86256919]
[1754092651052,4.436,3493.7,3493.3,3.35486919]
[1754092651278,0.1432,3493.8,3493.4,0.4923]
[1754092651590,0.1432,3493.4,3493.0,2.86282211]
[1754092652088,0.5933,3493.4,3492.9,2.862947]
[1754092652466,0.5933,3493.4,3493.0,2.86286097]
[1754092652762,0.5933,3493.4,3492.8,0.6355]
[1754092652983,0.5933,3493.4,3492.9,2.86289007]
[1754092653488,0.5933,3493.4,3492.8,0.1432]
[1754092653489,1.26156834,3493.4,3492.8,0.1432]
[1754092653690,0.1432,3492.9,3492.4,2.86335775]
[1754092653988,0.1432,3492.9,3492.3,0.6355]
[1754092653989,0.5933,3492.9,3492.3,0.6355]
[1754092654188,0.02885012,3492.8,3492.3,0.1432]
[1754092654391,0.02885012,3492.8,3492.3,3.00663553]
[1754092654392,0.4501,3492.8,3492.3,3.00663553]
[1754092654587,0.4501,3492.8,3492.4,2.86334498]
[1754092655367,0.02885012,3492.9,3492.1,2.86358879]
[1754092655670,0.02885012,3492.9,3492.0,0.4923]
[1754092655671,0.1432,3492.7,3492.4,2.86335745]
[1754092655855,0.1432,3492.7,3492.2,0.1432]
[1754092656055,0.1432,3492.7,3492.4,2.86328275]
[1754092656354,0.02885012,3492.6,3492.1,0.4923]
[1754092656556,0.1432,3492.5,3492.1,3.35585659]
[1754092656968,0.1432,3492.5,3492.1,2.86357244]
[1754092657188,0.1432,3492.5,3492.0,0.1432]
[1754092657189,0.1432,3492.5,3492.0,3.00686116]
[1754092657588,0.1432,3492.5,3492.0,0.5952]
[1754092657794,0.1432,3492.5,3492.3,2.86342029]
[1754092658000,0.1432,3492.5,3492.2,2.86352442]
[1754092658295,0.1432,3492.5,3492.3,0.4923]
[1754092658453,0.1432,3492.5,3492.4,2.86336043]
[1754092658659,0.1432,3493.2,3492.4,1.75461849]
[1754092658862,0.1432,3493.2,3492.8,2.86301702]
[1754092659278,0.1432,3493.2,3492.9,2.86288801]
[1754092659610,0.1432,3493.2,3492.8,0.4923]
[1754092659611,0.1432,3493.2,3492.8,3.35530216]
[1754092659788,2.86309734,3492.8,3492.4,0.002]
[1754092659960,3.00629734,3492.8,3492.4,0.002]
[1754092660156,0.1432,3492.5,3492.4,0.002]
[1754092660484,0.1432,3492.5,3492.4,2.86536043]
[1754092660673,0.1432,3492.5,3492.4,3.35766043]
[1754092662062,0.1432,3492.9,3492.7,2.86309093]
[1754092662274,0.1432,3492.9,3492.6,2.86316976]
[1754092662488,0.1432,3492.9,3492.6,3.35546976]
[1754092662689,0.1432,3492.9,3492.6,0.4923]
[1754092663090,0.1432,3492.9,3492.5,2.86325566]
[1754092663401,0.1432,3492.9,3492.6,2.86318015]
[1754092663604,0.1432,3492.9,3492.8,2.86303252]
[1754092663776,7.02,3493.2,3492.6,0.9443]
[1754092663777,0.1432,3493.1,3492.7,2.86311449]
[1754092663973,0.1432,3493.1,3492.7,0.452]
[1754092664309,0.1432,3493.1,3492.8,0.4923]
[1754092664599,13.896,3494.6,3492.8,4.23095464]
[1754092664763,0.1432,3493.7,3493.0,0.1432]
[1754092665092,0.1432,3493.7,3492.9,3.35525055]
[1754092665093,0.1432,3493.7,3493.4,2.86251128]
[1754092665302,0.1432,3493.7,3493.5,2.86244276]
[1754092665712,0.1432,3493.7,3493.3,2.86258645]
[1754092666065,0.5933,3493.7,3493.4,2.86253405]
[1754092666267,0.1432,3493.7,3493.4,2.86253405]
[1754092666492,0.1432,3493.7,3493.3,2.86259622]
[1754092666808,0.1432,3493.7,3493.4,2.86252532]
[1754092667415,0.1432,3493.7,3493.3,0.4923]
[1754092667416,0.1432,3493.7,3493.3,2.86259715]
[1754092667567,0.5933,3493.7,3493.4,2.86252727]
[1754092667765,0.1432,3493.7,3493.6,2.86237691]
[1754092667993,3.31206765,3494.1,3493.6,2.86237691]
[1754092668210,0.1432,3493.8,3493.6,2.86237691]
[1754092668412,0.1432,3493.8,3493.7,3.35459498]
[1754092668803,0.1432,3494.0,3493.8,2.86216292]
[1754092669113,0.1432,3494.0,3493.7,0.4923]
[1754092669271,0.1432,3494.0,3493.7,2.8622819]
[1754092669473,0.1432,3494.0,3493.6,2.86235122]
[1754092669873,0.1432,3494.0,3493.5,0.1432]
[1754092670218,0.1432,3494.0,3493.7,2.8622937]
[1754092670813,0.1432,3494.0,3493.7,2.86229498]
[1754092671173,0.1432,3494.0,3493.6,3.35464727]
[1754092671377,0.1432,3494.0,3493.7,2.86228997]
[1754092671882,4.438,3494.3,3493.9,2.86213114]
[1754092672082,0.1432,3494.2,3494.0,0.4879]
[1754092672501,0.1432,3494.2,3493.9,2.8621156]
[1754092672718,3.32029702,3494.7,3494.1,3.49305844]
[1754092672719,0.1442,3494.7,3494.1,3.49305844]
[1754092672922,0.1442,3494.7,3494.4,2.86171711]
[1754092673070,0.1442,3494.7,3494.2,2.86188541]
[1754092673269,0.1442,3494.7,3494.1,0.1432]
[1754092673584,0.93425591,3494.7,3494.2,2.86183244]
[1754092673788,0.1442,3494.7,3494.3,2.86173757]
[1754092674314,0.1442,3494.7,3494.2,0.4879]
[1754092674479,0.1442,3494.7,3494.1,0.1432]
[1754092674671,0.1442,3494.7,3494.3,2.86175065]
[1754092674872,0.1442,3494.7,3494.1,0.1432]
[1754092675121,0.001,3494.7,3494.3,0.6311]
[1754092675809,0.001,3494.7,3494.4,2.86170573]
[1754092676318,0.001,3494.7,3494.3,3.49286802]
[1754092676518,0.001,3494.7,3494.4,2.86171819]
[1754092676692,0.001,3494.7,3494.4,2.86166986]
[1754092677016,0.001,3494.7,3494.3,3.49285796]
[1754092677308,0.001,3494.7,3494.3,0.1432]
[1754092677512,0.001,3494.7,3494.4,2.86172161]
[1754092677685,0.001,3494.7,3494.3,3.49287324]
[1754092677889,0.001,3494.7,3494.4,2.86172088]
[1754092678505,0.001,3494.7,3494.5,2.86162376]
[1754092679094,0.001,3494.7,3494.3,3.49289967]
[1754092679095,0.001,3494.7,3494.4,2.86170831]
[1754092679510,0.001,3494.7,3494.5,2.86162628]
[1754092679810,0.001,3494.7,3494.4,2.86168842]
[1754092679977,0.001,3494.7,3494.3,0.6311]
[1754092680317,0.001,3494.7,3494.6,2.86155783]
[1754092680514,0.001,3494.7,3494.6,6.00475783]
[1754092680715,0.001,3494.7,3494.6,3.00475783]
[1754092680917,0.001,3494.7,3494.6,8.38145783]
[1754092681081,0.001,3494.7,3494.6,11.38145783]
[1754092681274,0.001,3494.7,3494.6,12.88960341]
[1754092681480,0.001,3494.7,3494.6,0.1432]
[1754092681728,0.001,3494.7,3494.6,6.5212734]
[1754092681877,0.001,3494.7,3494.6,7.44075783]
[1754092682081,0.001,3494.7,3494.6,4.44]
[1754092682388,0.4588,3494.7,3494.5,2.86162954]
[1754092682587,0.4588,3494.7,3494.6,2.86155783]
[1754092682588,0.001,3494.7,3494.6,2.86155783]
[1754092683004,0.001,3494.7,3494.6,3.34945783]
[1754092683330,0.001,3494.7,3493.9,0.4879]
[1754092683491,0.4589,3494.7,3494.3,3.0049954]
[1754092683826,0.4578,3494.6,3494.4,4.441]
[1754092684119,0.4578,3494.6,3494.3,7.44594155]
[1754092684315,0.4578,3494.6,3494.3,4.5842]
[1754092684527,0.4578,3494.6,3494.4,2.86165689]
[1754092684876,0.4589,3494.7,3494.4,2.86165689]
[1754092685113,0.001,3494.7,3494.5,2.86163428]
[1754092685315,0.001,3494.7,3494.4,2.86170368]
[1754092685520,0.001,3494.7,3494.5,2.8616353]
[1754092686009,0.001,3494.7,3494.4,2.86169308]
[1754092686312,0.001,3494.7,3494.5,2.86163712]
[1754092686612,0.001,3494.7,3494.3,7.44598289]
[1754092686812,0.001,3494.7,3494.6,2.86155783]
[1754092687806,0.001,3494.7,3494.3,4.441]
[1754092688000,0.001,3494.7,3494.5,0.1432]
[1754092688214,0.001,3494.7,3494.5,3.00483614]
[1754092688412,0.001,3494.7,3494.5,0.1432]
[1754092688720,0.001,3494.7,3494.5,3.0048331]
[1754092689014,0.4588,3494.7,3494.5,4.438]
[1754092689519,0.4588,3494.7,3494.3,3.00500249]
[1754092689817,0.4578,3494.6,3494.4,4.437]
[1754092690112,0.601,3494.6,3494.4,4.437]
[1754092690519,0.601,3494.6,3494.4,7.29872143]
[1754092690881,0.1432,3494.6,3494.4,7.29872143]
[1754092691515,0.1432,3494.6,3494.5,2.86163971]
[1754092692086,0.001,3494.7,3494.6,2.86155783]
[1754092692282,0.001,3494.7,3494.5,0.1432]
[1754092692488,0.001,3494.7,3494.5,3.00479107]
[1754092693426,0.001,3494.7,3494.6,2.86155783]
[1754092693584,0.001,3494.7,3494.6,5.05321048]
[1754092693785,0.001,3494.7,3494.6,8.02459491]
[1754092695013,0.001,3494.7,3494.6,12.46059491]
[1754092695391,0.001,3494.7,3494.6,7.08389491]
[1754092695591,0.001,3494.7,3494.6,7.43975783]
[1754092695804,0.001,3494.7,3494.6,0.1432]
[1754092696024,0.001,3494.7,3494.6,4.5792]
[1754092696232,0.9167,3494.7,3494.4,7.29772122]
[1754092696523,0.001,3494.7,3494.5,0.1432]
[1754092697432,0.4588,3494.7,3494.5,0.1432]
[1754092698720,0.9167,3494.7,3494.5,0.1432]
[1754092698917,0.9157,3494.6,3494.2,7.29687596]
[1754092699129,0.4579,3494.6,3494.2,7.44007596]
[1754092699322,0.9157,3494.5,3494.2,4.5782]
[1754092699510,0.4579,3494.5,3494.2,4.5782]
[1754092699831,0.1442,3494.7,3494.3,2.86178675]
[1754092700531,0.1442,3494.7,3494.4,2.861716]
[1754092701135,0.1442,3494.7,3494.4,7.29770735]
[1754092701540,0.1442,3494.7,3494.4,4.436]
[1754092701735,0.6367,3494.7,3494.4,4.436]
[1754092701937,1.1112,3494.7,3494.4,4.436]
[1754092702402,0.1442,3494.7,3494.4,7.29768589]
[1754092702606,0.1442,3494.7,3494.3,2.86177239]
[1754092702845,0.1442,3494.7,3494.4,4.435]
[1754092704059,0.1442,3494.7,3494.4,4.9133]
[1754092704260,0.001,3494.7,3494.5,0.4783]
[1754092704412,0.001,3494.7,3494.4,7.43986031]
[1754092704617,0.001,3494.7,3494.5,2.86163443]
[1754092704921,0.001,3494.7,3494.4,7.4398852]
[1754092705129,0.001,3494.7,3494.5,2.86162581]
[1754092705328,0.001,3494.7,3494.6,7.29655783]
[1754092705509,0.001,3494.7,3494.6,4.5782]
[1754092705719,0.4935,3494.7,3494.6,7.43975783]
[1754092705934,0.4935,3494.7,3494.6,4.5782]
[1754092706138,0.968,3494.7,3494.6,7.43975783]
[1754092706325,0.968,3494.7,3494.6,4.5782]
[1754092706525,0.968,3494.7,3494.6,0.1432]
[1754092707291,0.968,3494.7,3494.6,3.00475783]
[1754092707850,0.968,3494.7,3494.6,0.1432]
[1754092708437,0.968,3494.7,3494.5,4.435]
[1754092708640,0.967,3494.6,3494.3,3.00497979]
[1754092708950,0.967,3494.6,3494.4,2.86170434]
[1754092709914,0.967,3494.6,3494.3,4.5782]
[1754092709915,0.967,3494.6,3494.3,7.43997065]
[1754092710114,0.967,3494.5,3494.3,0.1432]
[1754092710318,0.967,3494.5,3494.1,0.002]
[1754092710552,0.6932,3494.2,3494.1,0.002]
[1754092710858,3.55508541,3494.2,3494.1,0.002]
[1754092711068,6.09018981,3494.2,3494.1,0.002]
[1754092715425,10.81018981,3494.2,3494.1,0.002]
[1754092719040,17.83018981,3494.2,3494.1,0.002]
[1754092721551,16.11018981,3494.2,3494.1,0.002]
[1754092722253,16.11018981,3494.2,3494.1,1e-08]
[1754092729183,16.39698981,3494.2,3494.1,1e-08]
[1754092729388,16.11018981,3494.2,3494.1,1e-08]
[1754092730162,15.14318981,3494.2,3494.1,1e-08]
[1754092731097,11.44998981,3494.2,3494.1,1e-08]
[1754092731262,11.59318981,3494.2,3494.1,1e-08]
[1754092731460,14.59318981,3494.2,3494.1,1e-08]
[1754092731679,15.14318981,3494.2,3494.1,1e-08]
[1754092731880,14.59318981,3494.2,3494.1,1e-08]
[1754092732391,15.14318981,3494.2,3494.1,1e-08]
[1754092734671,15.14318981,3494.2,3494.1,0.49650001]
[1754092735803,15.14318981,3494.2,3494.1,1e-08]
[1754092736804,14.59318981,3494.2,3494.1,1e-08]
[1754092737099,13.02508541,3494.2,3494.1,0.49650001]
[1754092737269,10.02508541,3494.2,3494.1,0.49650001]
[1754092737469,10.02508541,3494.2,3494.1,1e-08]
[1754092740315,14.49538541,3494.2,3494.1,1e-08]
[1754092740476,19.08363248,3494.2,3494.1,1e-08]
[1754092742486,19.08363248,3494.2,3493.7,0.002]
[1754092742487,2.86221306,3493.8,3493.7,0.002]
[1754092742676,30.91915945,3493.8,3493.7,0.002]
[1754092742883,31.81060933,3493.8,3493.7,0.002]
[1754092743220,19.73041306,3493.8,3493.7,0.002]
[1754092743374,34.35605986,3493.8,3493.7,0.002]
[1754092745806,34.35605986,3493.8,3493.3,0.002]
[1754092746110,19.43563706,3493.4,3493.3,0.002]
[1754092746319,23.87063706,3493.4,3493.3,0.002]
[1754092746611,23.87063706,3493.4,3492.4,0.447]
[1754092746612,2.86327845,3492.5,3492.4,0.002]
[1754092746812,7.87712857,3492.5,3492.4,0.002]
[1754092747015,8.31677845,3492.5,3492.4,0.002]
[1754092747178,8.91177845,3492.5,3492.4,0.002]
[1754092747379,9.27959543,3492.5,3492.4,0.002]
[1754092748819,0.1432,3492.5,3492.4,0.002]
[1754092749031,4.5782,3492.5,3492.4,0.9435]
[1754092749338,4.435,3492.6,3492.4,3.80680203]
[1754092749494,4.435,3492.6,3492.5,0.9415]
[1754092749829,4.5782,3492.7,3492.6,2.86319647]
[1754092750009,4.435,3492.9,3492.6,3.80469647]
[1754092750208,4.435,3492.9,3492.5,0.8245493]
[1754092750209,4.435,3492.9,3492.5,3.00646111]
[1754092750395,4.435,3492.9,3492.7,0.4965]
[1754092750596,4.435,3492.9,3492.8,0.9415]
[1754092751151,4.435,3492.9,3492.6,2.8631723]
[1754092751340,4.435,3492.9,3492.7,3.35960614]
[1754092751517,4.435,3492.9,3492.8,0.4965]
[1754092751843,4.435,3492.9,3492.8,0.9415]
[1754092752546,4.435,3492.9,3492.8,3.80453252]
[1754092752928,4.435,3492.9,3492.8,0.9415]
[1754092753126,4.435,3492.9,3492.8,0.4965]
[1754092753332,4.89282,3492.9,3492.5,0.4965]
[1754092753554,4.89282,3492.9,3492.4,0.002]
[1754092753555,0.1432,3492.7,3492.4,0.002]
[1754092753749,4.5782,3492.7,3492.4,0.002]
[1754092754048,4.5782,3492.7,3492.4,0.4985]
[1754092754809,4.5782,3492.7,3492.4,3.36185989]
[1754092755263,4.5782,3492.7,3492.4,0.4985]
[1754092756460,4.5782,3492.7,3492.4,3.36185123]
[1754092756853,4.5782,3492.7,3492.4,2.86535123]
[1754092757058,4.5782,3492.7,3492.5,0.4965]
[1754092759835,4.5782,3492.7,3492.5,3.35976076]
[1754092761989,4.435,3492.9,3492.7,2.8630482]
[1754092762128,4.5782,3492.9,3492.8,0.4528]
[1754092762465,4.5782,3492.9,3492.8,3.74503252]
[1754092762840,0.69122533,3493.8,3492.8,0.882]
[1754092762841,4.5782,3493.1,3492.8,0.882]
[1754092763032,0.1432,3493.1,3492.8,0.882]
[1754092763220,0.1432,3493.1,3492.9,3.31574869]
[1754092764481,0.1432,3493.1,3493.0,0.4528]
[1754092764972,0.1432,3493.1,3492.9,2.86294869]
[1754092764973,0.1432,3493.1,3492.9,2.86291255]
[1754092765540,0.1432,3493.1,3493.0,2.86286859]
[1754092765753,0.1432,3493.1,3493.0,3.31566859]
[1754092765955,0.1432,3493.1,3493.0,0.4528]
[1754092766176,0.1432,3493.1,3492.8,3.2922066]
[1754092766367,0.1432,3493.1,3492.8,2.8630066]
[1754092767443,0.1442,3493.1,3492.8,2.8630066]
[1754092768253,0.1442,3493.1,3492.6,3.00638173]
[1754092768254,0.8965,3493.0,3492.7,2.86308413]
[1754092768779,0.1442,3493.1,3492.8,2.8630059]
[1754092769178,0.1442,3493.1,3492.7,3.31589136]
[1754092770082,0.1442,3493.1,3492.8,3.74502328]
[1754092770500,4.5782,3493.1,3492.8,3.74502328]
[1754092770647,4.5782,3493.1,3492.8,3.31582328]
[1754092771186,4.5782,3493.1,3492.8,0.4528]
[1754092771495,4.5782,3493.1,3492.8,3.31580487]
[1754092771789,4.5782,3493.1,3493.0,2.86286859]
[1754092772160,0.1442,3493.1,3492.9,3.31571778]
[1754092772358,0.1442,3493.1,3493.0,2.86286859]
[1754092772792,0.001,3493.1,3493.0,4.03145786]
[1754092772966,0.001,3493.1,3492.4,0.002]
[1754092772967,0.001,3493.1,3492.5,0.4528]
[1754092773166,0.001,3493.1,3492.8,2.86298843]
[1754092773372,0.001,3493.1,3492.9,2.8628974]
[1754092774559,0.001,3493.1,3493.0,2.86286859]
[1754092774994,0.001,3493.1,3493.0,3.74486859]
[1754092775376,0.001,3493.1,3493.0,3.31566859]
[1754092775984,0.001,3493.1,3493.0,2.86286859]
[1754092777082,0.001,3493.1,3493.0,3.31566859]